bitfinex/quotes_SOLUSD_20251019
["timestamp","ask_amount","ask_price","bid_price","bid_amount"]
[1760862645136,3.32887142,185.01,184.97,6.08611889]
[1760862645353,0.5388802,185.03,184.97,6.08611889]
[1760862645354,3.32887142,185.0,184.97,6.08611889]
[1760862645540,3.32887142,185.02,184.98,0.68]
[1760862646126,3.32887142,185.03,184.99,0.68]
[1760862646329,3.32887142,185.05,184.99,0.68]
[1760862646533,0.5388802,185.09,185.01,3.32887142]
[1760862646735,0.5388802,185.09,185.02,4.00887142]
[1760862646736,3.32887142,185.09,185.02,4.00887142]
[1760862647246,3.32887142,185.09,185.03,5.40452899]
[1760862647619,3.86775162,185.12,185.05,3.32887142]
[1760862648036,3.32887142,185.11,185.04,4.00887142]
[1760862648426,3.32887142,185.12,185.06,22.88]
[1760862648627,3.86775162,185.11,185.06,22.88]
[1760862649145,0.5388802,185.15,185.07,19.59175945]
[1760862649346,0.5388802,185.19,185.11,22.88]
[1760862649543,0.72,185.24,185.11,22.88]
[1760862649544,3.32887142,185.22,185.16,3.32887142]
[1760862649842,3.32887142,185.23,185.17,0.68]
[1760862650027,1.2588802,185.26,185.17,0.68]
[1760862650230,3.32887142,185.24,185.17,4.00887142]
[1760862650428,3.32887142,185.25,185.17,1.22004428]
[1760862650623,3.32887142,185.27,185.18,0.68]
[1760862650828,3.86775162,185.26,185.19,3.32887142]
[1760862651231,3.32887142,185.27,185.2,31.60843945]
[1760862651549,3.32887142,185.26,185.2,28.95956803]
[1760862651742,3.32887142,185.27,185.2,32.28843945]
[1760862651949,3.32887142,185.24,185.19,0.53998596]
[1760862652255,4.04887142,185.24,185.17,32.28923552]
[1760862652431,3.32887142,185.22,185.14,0.54013179]
[1760862652633,3.86775162,185.21,185.16,22.88]
[1760862652943,0.5388802,185.21,185.16,22.88]
[1760862653144,0.5388802,185.21,185.16,23.56]
[1760862653342,0.5388802,185.21,185.16,0.68]
[1760862653540,0.5388802,185.21,185.16,28.96070269]
[1760862653849,3.32887142,185.22,185.16,28.28070269]
[1760862654047,0.5388802,185.21,185.16,28.28070269]
[1760862654243,4.58775162,185.21,185.14,0.68]
[1760862654446,1.2588802,185.21,185.14,0.68]
[1760862654656,3.32887142,185.18,185.11,9.41077531]
[1760862655448,3.32887142,185.2,185.13,3.32887142]
[1760862655627,0.5388802,185.19,185.13,3.32887142]
[1760862655827,0.5388802,185.2,185.14,3.32887142]
[1760862656038,13.49212742,185.3,185.15,4.00887142]
[1760862656039,3.32887142,185.22,185.15,4.00887142]
[1760862656251,0.5388802,185.21,185.15,4.00887142]
[1760862656547,4.58775162,185.24,185.17,3.32887142]
[1760862656846,1.2588802,185.24,185.17,3.32887142]
[1760862657144,3.86775162,185.26,185.19,3.32887142]
[1760862657347,3.32887142,185.27,185.2,8.72843945]
[1760862657930,0.5388802,185.26,185.2,8.72843945]
[1760862658330,0.72,185.29,185.21,4.00887142]
[1760862658331,3.32887142,185.28,185.21,4.00887142]
[1760862658652,0.5388802,185.29,185.22,4.54876991]
[1760862658833,3.32887142,185.3,185.22,0.68]
[1760862659031,0.72,185.32,185.25,3.32887142]
[1760862659032,1.2588802,185.32,185.25,3.32887142]
[1760862659239,3.32887142,185.31,185.24,8.72718252]
[1760862659439,0.5388802,185.3,185.24,8.72718252]
[1760862659748,0.5388802,185.3,185.25,4.00887142]
[1760862659959,0.5388802,185.3,185.26,0.68]
[1760862660134,3.32887142,185.31,185.26,0.68]
[1760862660335,1.2588802,185.3,185.2,0.68]
[1760862660537,3.32887142,185.26,185.2,9.40829627]
[1760862661243,3.32887142,185.27,185.22,5.39898499]
[1760862661428,3.32887142,185.28,185.23,0.68]
[1760862661758,1.2588802,185.32,185.24,0.68]
[1760862661928,3.32887142,185.3,185.24,4.00887142]
[1760862662246,3.32887142,185.3,185.25,3.32887142]
[1760862662438,3.32887142,185.3,185.26,0.68]
[1760862663227,3.32887142,185.27,185.22,9.40764424]
[1760862663447,3.32887142,185.26,185.19,6.61966246]
[1760862663648,0.72,185.27,185.2,3.32887142]
[1760862663947,3.32887142,185.25,185.2,0.68]
[1760862664127,3.32887142,185.24,185.2,0.68]
[1760862664330,3.32887142,185.24,185.21,0.68]
[1760862664728,3.32887142,185.24,185.22,0.68]
[1760862664930,3.32887142,185.25,185.22,0.68]
[1760862665152,3.32887142,185.25,185.19,4.00887142]
[1760862665364,3.32887142,185.22,185.16,14.18145021]
[1760862665556,3.32887142,185.21,185.16,0.68]
[1760862665736,3.32887142,185.18,185.12,6.08161608]
[1760862665937,3.32887142,185.18,185.12,28.96161608]
[1760862666241,3.32887142,185.18,185.12,32.2904875]
[1760862666863,3.32887142,185.15,185.12,0.68]
[1760862667039,3.32887142,185.15,185.09,3.32887142]
[1760862667230,0.72,185.17,185.08,6.082783]
[1760862667433,3.32887142,185.13,185.08,6.082783]
[1760862667657,0.5388802,185.16,185.09,0.68]
[1760862667658,3.32887142,185.12,185.09,0.68]
[1760862667952,3.32887142,185.13,185.1,0.68]
[1760862668453,3.32887142,185.13,185.08,5.402783]
[1760862668628,3.32887142,185.13,185.09,0.68]
[1760862668831,3.32887142,185.12,185.09,0.68]
[1760862669235,3.32887142,185.11,185.07,5.40332967]
[1760862669930,3.32887142,185.11,185.07,6.10332967]
[1760862670732,3.32887142,185.13,185.08,0.7]
[1760862671047,3.32887142,185.12,185.08,0.7]
[1760862671861,3.32887142,185.11,185.07,5.40333978]
[1760862672042,3.32887142,185.09,185.05,6.10389186]
[1760862672244,3.32887142,185.09,185.05,5.40389186]
[1760862672447,3.32887142,185.09,185.05,6.10389186]
[1760862672758,0.5388802,185.13,185.06,0.7]
[1760862672958,3.32887142,185.09,185.06,0.7]
[1760862673346,3.32887142,185.09,185.05,5.40389186]
[1760862673759,0.67,185.11,185.05,5.40389186]
[1760862673964,3.32887142,185.09,185.05,6.12389186]
[1760862674158,0.67,185.11,185.05,6.12389186]
[1760862674159,3.32887142,185.08,185.05,0.72]
[1760862674364,1.2288802,185.07,185.0,5.40530882]
[1760862674564,3.32887142,185.03,185.0,5.40530882]
[1760862674747,3.32887142,185.03,185.0,0.72]
[1760862675376,3.32887142,185.02,184.97,0.72]
[1760862675965,3.32887142,185.02,184.98,0.72]
[1760862676151,3.32887142,185.01,184.96,5.40657439]
[1760862676461,3.32887142,185.01,184.96,6.12657439]
[1760862676667,1.2288802,185.05,184.98,3.32887142]
[1760862676868,3.32887142,185.04,184.98,8.73473418]
[1760862677075,3.86775162,185.04,184.98,8.73473418]
[1760862677261,3.32887142,185.03,184.98,5.40586276]
[1760862677569,3.32887142,184.99,184.94,4.04887142]
[1760862677876,3.32887142,184.97,184.92,5.40774388]
[1760862678051,3.32887142,184.97,184.92,6.12774388]
[1760862678875,3.32887142,184.95,184.91,5.60802376]
[1760862679381,3.32887142,184.93,184.91,0.2]
[1760862680667,3.32887142,184.92,184.91,0.2]
[1760862680855,4.01887142,184.92,184.91,0.2]
[1760862681169,0.69,184.92,184.91,0.2]
[1760862681354,3.32887142,184.94,184.91,0.2]
[1760862681557,0.5388802,184.97,184.91,5.60799314]
[1760862681861,3.32887142,184.96,184.91,8.93686456]
[1760862682449,10.87647521,185.0,184.91,0.2]
[1760862682450,3.32887142,184.93,184.91,0.2]
[1760862682848,3.32887142,184.94,184.91,0.2]
[1760862683474,3.32887142,184.94,184.91,5.60795538]
[1760862683966,3.32887142,184.95,184.91,5.60795538]
[1760862684361,0.5388802,184.99,184.92,4.04887142]
[1760862684562,3.32887142,184.97,184.92,4.04887142]
[1760862684751,0.5388802,184.99,184.93,0.72]
[1760862684956,3.32887142,184.98,184.94,5.40715907]
[1760862685168,3.32887142,184.98,184.94,6.12715907]
[1760862685349,3.32887142,184.96,184.91,17.04896227]
[1760862685550,3.32887142,184.96,184.92,6.12774388]
[1760862685745,0.69,185.01,184.93,0.72]
[1760862685968,3.32887142,184.97,184.93,0.72]
[1760862687162,3.32887142,184.97,184.93,6.12739399]
[1760862688477,3.86775162,184.96,184.92,5.40771543]
[1760862688663,3.32887142,184.94,184.91,0.2]
[1760862689078,3.32887142,184.93,184.91,0.2]
[1760862689586,3.32887142,184.93,184.91,5.60802684]
[1760862689785,11.41535541,185.0,184.91,5.60802684]
[1760862689786,0.5388802,185.0,184.92,0.72]
[1760862690073,0.5388802,185.0,184.91,0.2]
[1760862690074,3.32887142,184.93,184.91,0.2]
[1760862690276,3.32887142,184.92,184.91,0.2]
[1760862690888,0.69,184.98,184.91,6.32786697]
[1760862691072,0.5388802,184.97,184.91,6.32786697]
[1760862691384,3.32887142,184.95,184.91,6.32786697]
[1760862691685,22.88,185.01,184.92,4.04887142]
[1760862691872,3.32887142,184.97,184.92,4.04887142]
[1760862692179,0.5388802,185.0,184.91,0.2]
[1760862692180,3.32887142,184.93,184.91,0.2]
[1760862692386,3.32887142,184.93,184.91,5.60800534]
[1760862692578,3.32887142,184.93,184.91,0.2]
[1760862692772,3.32887142,184.92,184.91,0.2]
[1760862693170,1.2288802,184.96,184.91,0.2]
[1760862693386,0.69,184.95,184.91,0.2]
[1760862693559,3.32887142,184.92,184.91,0.2]
[1760862694087,3.32887142,184.93,184.91,0.2]
[1760862694386,3.32887142,184.92,184.91,0.2]
[1760862694579,0.69,184.95,184.91,0.2]
[1760862694875,22.88,184.98,184.92,0.72]
[1760862694876,3.32887142,184.96,184.92,0.72]
[1760862695272,3.32887142,184.97,184.92,0.72]
[1760862695579,4.01887142,184.97,184.91,8.93686414]
[1760862695762,3.32887142,184.96,184.91,8.93686414]
[1760862695961,3.32887142,184.96,184.91,9.65686414]
[1760862696282,0.5388802,184.99,184.92,0.72]
[1760862696482,3.32887142,184.96,184.92,0.72]
[1760862697579,3.32887142,184.96,184.92,6.12770245]
[1760862698883,3.32887142,184.95,184.92,6.12770245]
[1760862699389,3.32887142,184.93,184.91,0.2]
[1760862699687,3.32887142,184.92,184.91,0.2]
[1760862702664,4.01887142,184.92,184.91,0.2]
[1760862703286,3.32887142,184.92,184.91,0.2]
[1760862703991,3.32887142,184.94,184.91,0.9]
[1760862704197,3.32887142,184.95,184.91,0.9]
[1760862704493,3.32887142,184.96,184.92,0.7]
[1760862705071,0.7,184.98,184.92,0.7]
[1760862705271,3.32887142,184.96,184.92,0.7]
[1760862705698,0.7,184.98,184.92,0.7]
[1760862705867,3.32887142,184.96,184.92,0.7]
[1760862706471,0.7,184.98,184.92,5.40763366]
[1760862706675,0.7,184.98,184.92,6.10763366]
[1760862706883,3.32887142,184.97,184.92,6.10763366]
[1760862707086,3.32887142,184.98,184.93,4.02887142]
[1760862707284,3.32887142,184.97,184.94,0.7]
[1760862707488,3.32887142,184.97,184.92,6.10763366]
[1760862707666,3.32887142,184.97,184.92,5.40763366]
[1760862707872,3.32887142,184.97,184.93,0.7]
[1760862708493,4.02887142,184.97,184.92,5.40763366]
[1760862708788,3.32887142,184.95,184.91,5.60798849]
[1760862708985,3.32887142,184.92,184.91,0.2]
[1760862709392,4.02887142,184.92,184.91,0.2]
[1760862709691,15.44422683,184.92,184.91,0.2]
[1760862711094,4.56775162,184.92,184.91,0.2]
[1760862712079,1.2388802,184.92,184.91,0.2]
[1760862712277,4.02887142,184.92,184.91,0.2]
[1760862712600,4.56775162,184.92,184.91,0.2]
[1760862712795,1.2388802,184.92,184.91,0.2]
[1760862712972,4.56775162,184.92,184.91,0.2]
[1760862713174,9.9754955,184.92,184.91,0.2]
[1760862713602,9.9754955,184.92,184.81,6.11094685]
[1760862713782,3.32887142,184.84,184.81,6.11094685]
[1760862713979,3.32887142,184.86,184.82,0.7]
[1760862714179,3.32887142,184.88,184.83,3.32887142]
[1760862714393,3.32887142,184.88,184.84,0.7]
[1760862714711,0.5388802,184.93,184.85,0.7]
[1760862714879,3.32887142,184.9,184.86,5.40949908]
[1760862715085,3.32887142,184.9,184.87,0.7]
[1760862715303,3.32887142,184.91,184.88,0.7]
[1760862715803,3.32887142,184.91,184.89,0.7]
[1760862716379,0.5388802,184.96,184.9,0.7]
[1760862716579,3.32887142,184.96,184.9,4.02887142]
[1760862716798,3.32887142,184.96,184.91,4.02887142]
[1760862717002,3.32887142,184.98,184.93,5.40745146]
[1760862717192,0.5388802,184.97,184.94,0.7]
[1760862717498,0.5388802,185.01,184.96,3.32887142]
[1760862717698,3.32887142,185.01,184.97,0.7]
[1760862717906,3.86775162,185.0,184.94,4.02887142]
[1760862718112,3.32887142,184.95,184.9,0.7]
[1760862718315,3.32887142,184.95,184.9,3.32887142]
[1760862718497,3.32887142,184.95,184.91,0.7]
[1760862718806,3.32887142,184.95,184.92,0.7]
[1760862719002,3.32887142,184.96,184.92,0.7]
[1760862719191,3.32887142,184.96,184.91,5.40803634]
[1760862719509,3.32887142,184.95,184.93,0.7]
[1760862719883,3.32887142,184.96,184.94,0.7]
[1760862720305,3.57908901,185.02,184.88,17.550551]
[1760862720306,3.86775162,184.95,184.88,17.550551]
[1760862720525,3.32887142,184.92,184.89,5.40857488]
[1760862721004,3.32887142,184.93,184.9,0.7]
[1760862721390,1.2388802,184.98,184.89,5.40857488]
[1760862721391,3.32887142,184.94,184.91,0.7]
[1760862721585,3.32887142,184.95,184.91,0.7]
[1760862721908,1.2388802,184.98,184.91,0.7]
[1760862722095,0.5388802,184.98,184.91,4.02887142]
[1760862722423,3.32887142,184.96,184.92,0.7]
[1760862722791,3.32887142,184.95,184.92,0.7]
[1760862723202,3.32887142,184.93,184.9,5.40829266]
[1760862723404,3.32887142,184.93,184.91,0.7]
[1760862723586,3.32887142,184.95,184.91,0.7]
[1760862723784,3.32887142,184.95,184.92,0.7]
[1760862723991,3.32887142,184.95,184.9,22.25798614]
[1760862723992,3.32887142,184.96,184.93,0.7]
[1760862724305,1.2388802,185.0,184.92,3.32887142]
[1760862724604,3.32887142,184.99,184.94,0.7]
[1760862724811,3.57908901,185.01,184.96,3.32887142]
[1760862725020,3.32887142,185.03,184.98,8.73486125]
[1760862725314,0.5388802,185.09,185.02,3.32887142]
[1760862725485,3.32887142,185.09,185.03,0.7]
[1760862725685,3.32887142,185.09,185.04,3.32887142]
[1760862725906,3.32887142,185.1,185.05,4.02887142]
[1760862726102,3.32887142,185.11,185.06,0.7]
[1760862726300,3.32887142,185.12,185.07,4.02887142]
[1760862726608,3.32887142,185.14,185.09,3.32887142]
[1760862726797,0.5388802,185.18,185.1,0.7]
[1760862726981,0.5388802,185.18,185.11,5.40219329]
[1760862727186,3.32887142,185.22,185.14,3.32887142]
[1760862727187,0.5388802,185.21,185.14,3.32887142]
[1760862727483,3.32887142,185.2,185.14,4.02887142]
[1760862727683,3.32887142,185.18,185.11,1.24021932]
[1760862727931,3.32887142,185.18,185.12,3.32887142]
[1760862728108,3.32887142,185.18,185.13,0.54016096]
[1760862728409,3.32887142,185.18,185.13,4.56903238]
[1760862728592,3.32887142,185.19,185.14,0.7]
[1760862728798,3.32887142,185.19,185.15,0.7]
[1760862728994,0.5388802,185.22,185.15,0.7]
[1760862729306,3.32887142,185.2,185.15,9.96991767]
[1760862729507,3.32887142,185.22,185.16,4.02887142]
[1760862729811,3.32887142,185.22,185.17,3.32887142]
[1760862729998,3.32887142,185.22,185.18,0.66]
[1760862730519,3.32887142,185.21,185.18,0.66]
[1760862730900,3.32887142,185.21,185.15,0.54010261]
[1760862731210,3.32887142,185.16,185.07,6.06333817]
[1760862731423,3.32887142,185.1,185.07,6.06333817]
[1760862731597,3.32887142,185.1,185.07,0.66]
[1760862731789,1.2488802,185.15,185.07,0.66]
[1760862731989,3.32887142,185.09,185.07,6.06334782]
[1760862732195,1.2488802,185.15,185.07,0.66]
[1760862732412,3.32887142,185.08,185.07,6.06336089]
[1760862732719,0.71,185.15,185.07,6.06336089]
[1760862732926,0.71,185.17,185.08,0.66]
[1760862733214,3.32887142,185.1,185.08,6.06288051]
[1760862734000,3.32887142,185.09,185.06,5.40341657]
[1760862734201,3.32887142,185.07,185.05,0.67]
[1760862734525,3.32887142,185.06,185.05,0.67]
[1760862734739,3.32887142,185.06,185.01,0.67]
[1760862734901,3.32887142,185.06,185.02,0.67]
[1760862735106,3.32887142,185.06,185.03,6.07452899]
[1760862735307,0.5388802,185.12,185.04,0.67]
[1760862735308,3.32887142,185.08,185.04,0.67]
[1760862735529,3.32887142,185.08,185.05,0.67]
[1760862735705,3.32887142,185.1,185.06,0.67]
[1760862736023,3.32887142,185.11,185.07,0.67]
[1760862736403,3.32887142,185.11,185.08,0.67]
[1760862736622,3.32887142,185.11,185.05,0.54039448]
[1760862736623,3.32887142,185.11,185.05,3.8692659]
[1760862736819,0.5388802,185.15,185.07,0.67]
[1760862737039,0.5388802,185.17,185.08,3.86917831]
[1760862737198,3.32887142,185.17,185.11,3.32887142]
[1760862737400,3.32887142,185.17,185.12,3.99887142]
[1760862737621,3.32887142,185.18,185.13,3.99887142]
[1760862737935,3.32887142,185.18,185.14,0.67]
[1760862738234,4.51775162,185.22,185.14,0.67]
[1760862738440,3.32887142,185.18,185.14,0.67]
[1760862738606,3.32887142,185.19,185.14,3.99887142]
[1760862738809,3.32887142,185.19,185.15,5.40102619]
[1760862739432,3.32887142,185.19,185.14,9.40015973]
[1760862739744,3.32887142,185.18,185.14,6.07128831]
[1760862739942,3.32887142,185.19,185.15,0.67]
[1760862740440,3.32887142,185.18,185.15,0.67]
[1760862740619,3.32887142,185.18,185.14,5.40128831]
[1760862740826,3.32887142,185.15,185.12,0.54019014]
[1760862741146,3.32887142,185.16,185.12,0.67]
[1760862741344,3.32887142,185.15,185.12,0.67]
[1760862741510,3.32887142,185.15,185.1,3.32887142]
[1760862741826,3.32887142,185.16,185.12,0.67]
[1760862742014,3.32887142,185.17,185.12,0.67]
[1760862742220,3.32887142,185.18,185.13,3.99887142]
[1760862742414,3.32887142,185.19,185.14,0.67]
[1760862742814,3.32887142,185.18,185.14,0.67]
[1760862743037,0.5388802,185.21,185.14,6.07121486]
[1760862743244,3.32887142,185.19,185.15,0.67]
[1760862743429,3.32887142,185.18,185.13,3.32887142]
[1760862743737,3.32887142,185.14,185.05,0.67]
[1760862743943,3.32887142,185.1,185.05,0.67]
[1760862744132,3.32887142,185.11,185.06,0.67]
[1760862744340,3.32887142,185.13,185.07,3.32887142]
[1760862744534,3.32887142,185.13,185.08,3.99887142]
[1760862744732,1.1888802,185.17,185.09,3.99887142]
[1760862744733,3.32887142,185.14,185.09,3.99887142]
[1760862744943,3.32887142,185.14,185.1,6.07244423]
[1760862747336,3.32887142,185.14,185.11,0.67]
[1760862747954,3.32887142,185.13,185.08,9.40194036]
[1760862748254,3.32887142,185.13,185.09,0.67]
[1760862748551,0.65,185.19,185.11,3.32887142]
[1760862748740,3.32887142,185.17,185.12,3.99887142]
[1760862748936,3.32887142,185.18,185.13,3.99887142]
[1760862749132,3.32887142,185.19,185.14,3.99887142]
[1760862749331,1.1888802,185.22,185.16,3.32887142]
[1760862749539,1.1888802,185.22,185.15,0.67]
[1760862749540,3.32887142,185.22,185.17,3.32887142]
[1760862749742,3.32887142,185.22,185.17,3.99887142]
[1760862749934,3.32887142,185.22,185.17,0.67]
[1760862750139,3.32887142,185.22,185.17,3.99887142]
[1760862750349,3.32887142,185.22,185.17,0.67]
[1760862750549,3.32887142,185.22,185.18,5.4001512]
[1760862750765,1.1888802,185.25,185.18,6.0701512]
[1760862751058,3.32887142,185.22,185.18,6.0701512]
[1760862751632,3.32887142,185.23,185.18,6.0701512]
[1760862752447,3.32887142,185.21,185.17,5.40044283]
[1760862752982,3.32887142,185.19,185.16,5.4006858]
[1760862754059,0.65,185.21,185.16,5.4006858]
[1760862754060,3.32887142,185.18,185.16,5.4006858]
[1760862754575,3.32887142,185.18,185.14,5.40131792]
[1760862754759,3.32887142,185.18,185.14,6.07131792]
[1760862754960,3.32887142,185.18,185.15,0.67]
[1760862755357,3.32887142,185.16,185.09,16.83520975]
[1760862755569,3.32887142,185.14,185.09,16.83520975]
[1760862755871,3.32887142,185.15,185.12,22.88]
[1760862756044,3.32887142,185.15,185.12,23.55]
[1760862756250,3.32887142,185.16,185.12,22.88]
[1760862756549,3.32887142,185.15,185.13,5.40160967]
[1760862757164,3.32887142,185.19,185.14,3.99887142]
[1760862757355,102.1,185.21,185.15,0.67]
[1760862757557,3.32887142,185.18,185.13,22.23450528]
[1760862757761,3.32887142,185.18,185.14,0.67]
[1760862758076,3.32887142,185.19,185.15,0.67]
[1760862758267,102.6388802,185.21,185.15,3.32887142]
[1760862758474,3.32887142,185.2,185.16,0.67]
[1760862758668,102.1,185.21,185.16,5.40073449]
[1760862758669,3.32887142,185.19,185.16,5.40073449]
[1760862758858,3.32887142,185.2,185.16,6.07073449]
[1760862759053,3.97887142,185.19,185.14,0.54013179]
[1760862759264,3.32887142,185.19,185.15,0.67]
[1760862759450,3.32887142,185.19,185.14,8.73018737]
[1760862759775,103.2888802,185.21,185.15,0.67]
[1760862759776,3.32887142,185.2,185.15,0.67]
[1760862759952,3.32887142,185.2,185.15,3.99887142]
[1760862760768,3.32887142,185.19,185.16,5.40073449]
[1760862761569,105.42887142,185.21,185.17,0.67]
[1760862761765,3.32887142,185.22,185.17,0.67]
[1760862761970,3.32887142,185.22,185.17,3.99887142]
[1760862762278,3.32887142,185.22,185.17,0.67]
[1760862762477,3.32887142,185.21,185.16,22.23144215]
[1760862762685,0.5388802,185.26,185.17,0.67]
[1760862762868,3.32887142,185.22,185.17,3.99887142]
[1760862763063,3.32887142,185.22,185.18,0.67]
[1760862763262,3.32887142,185.23,185.18,3.99887142]
[1760862763859,0.65,185.25,185.19,5.3998596]
[1760862764060,3.32887142,185.23,185.19,5.3998596]
[1760862764287,3.32887142,185.24,185.19,8.72873102]
[1760862764466,3.32887142,185.24,185.2,0.69]
[1760862764783,3.32887142,185.24,185.19,22.22838002]
[1760862764996,3.32887142,185.24,185.19,22.91838002]
[1760862766687,3.32887142,185.24,185.21,5.39927649]
[1760862766982,3.32887142,185.24,185.2,6.08953522]
[1760862767383,1.1988802,185.29,185.21,0.69]
[1760862767584,1.1988802,185.29,185.21,4.55879906]
[1760862767789,3.32887142,185.27,185.22,3.32887142]
[1760862768292,3.32887142,185.27,185.22,4.01887142]
[1760862768459,3.32887142,185.27,185.22,0.69]
[1760862768658,3.32887142,185.27,185.23,5.39869351]
[1760862769586,3.32887142,185.25,185.21,5.39899761]
[1760862769795,0.66,185.25,185.21,5.39899761]
[1760862769967,3.32887142,185.26,185.21,6.08899761]
[1760862770289,3.32887142,185.27,185.22,0.69]
[1760862770482,4.52775162,185.28,185.23,0.69]
[1760862770687,3.32887142,185.28,185.24,5.39840207]
[1760862771185,3.98887142,185.28,185.24,5.39840207]
[1760862771487,3.32887142,185.26,185.22,5.39898499]
[1760862771785,3.32887142,185.26,185.22,6.08898499]
[1760862772189,3.32887142,185.27,185.22,6.08898499]
[1760862772686,3.32887142,185.28,185.23,0.69]
[1760862772983,0.66,185.29,185.24,0.69]
[1760862772984,3.32887142,185.29,185.24,0.69]
[1760862773288,3.32887142,185.29,185.23,3.32887142]
[1760862773474,3.86775162,185.31,185.25,3.32887142]
[1760862773671,3.86775162,185.32,185.25,0.69]
[1760862773884,3.32887142,185.31,185.25,4.01887142]
[1760862774181,0.5388802,185.32,185.25,4.01887142]
[1760862774384,3.32887142,185.32,185.26,3.32887142]
[1760862774684,0.5388802,185.36,185.28,3.32887142]
[1760862774685,0.66,185.34,185.28,3.32887142]
[1760862774891,4.52775162,185.34,185.27,22.75997197]
[1760862775991,4.52775162,185.34,185.28,3.32887142]
[1760862776291,3.98887142,185.34,185.28,4.01887142]
[1760862776479,1.2988802,185.37,185.29,4.01887142]
[1760862776792,3.32887142,185.36,185.3,5.39665407]
[1760862776998,0.6388802,185.37,185.31,0.69]
[1760862777201,3.96775162,185.37,185.31,0.69]
[1760862778881,3.96775162,185.37,185.32,5.39607165]
[1760862779081,3.96775162,185.37,185.32,6.08607165]
[1760862779285,3.96775162,185.37,185.28,0.69]
[1760862779286,3.32887142,185.34,185.28,0.69]
[1760862780483,3.32887142,185.32,185.26,18.89208538]
[1760862780798,3.32887142,185.31,185.26,18.89208538]
[1760862780998,3.32887142,185.28,185.21,0.69]
[1760862781176,3.32887142,185.23,185.17,0.69]
[1760862781379,3.32887142,185.26,185.19,3.32887142]
[1760862781598,3.32887142,185.22,185.17,5.4003893]
[1760862781783,0.66,185.24,185.17,6.0903893]
[1760862781987,0.66,185.24,185.2,22.88]
[1760862781988,3.32887142,185.23,185.2,22.88]
[1760862782177,3.32887142,185.22,185.2,22.88]
[1760862782372,3.32887142,185.21,185.17,6.0903893]
[1760862782572,0.66,185.21,185.17,5.4003893]
[1760862782779,3.32887142,185.21,185.19,22.88]
[1760862783489,3.32887142,185.21,185.16,28.97073449]
[1760862783684,3.98887142,185.2,185.16,22.88]
[1760862783900,3.32887142,185.18,185.11,3.32887142]
[1760862784205,3.32887142,185.16,185.1,5.40248514]
[1760862784405,3.86775162,185.15,185.1,5.40248514]
[1760862784714,3.32887142,185.14,185.1,5.40248514]
[1760862785099,0.66,185.15,185.1,5.40248514]
[1760862785300,3.32887142,185.15,185.11,0.69]
[1760862785698,4.52775162,185.14,185.09,5.40276358]
[1760862785902,3.32887142,185.12,185.05,0.69]
[1760862786209,3.32887142,185.08,185.01,16.84111014]
[1760862786411,3.32887142,185.08,185.03,0.69]
[1760862786896,3.32887142,185.08,185.03,6.09440868]
[1760862787211,3.32887142,185.06,185.0,0.69]
[1760862787420,3.32887142,185.06,184.99,3.32887142]
[1760862787421,3.32887142,185.04,184.98,5.40598983]
[1760862787593,3.32887142,185.03,184.98,5.40598983]
[1760862787920,3.32887142,185.04,184.99,0.69]
[1760862788228,3.32887142,185.04,184.98,5.40598983]
[1760862788516,3.98887142,185.04,184.98,5.40598983]
[1760862788696,3.32887142,185.01,184.94,0.69]
[1760862788904,3.32887142,185.0,184.94,6.09715907]
[1760862789298,3.32887142,184.99,184.92,13.51884131]
[1760862789507,3.32887142,184.99,184.91,26.89887142]
[1760862789817,0.71,185.0,184.92,5.40774388]
[1760862790031,15.50727471,185.09,184.92,5.40774388]
[1760862790032,0.71,185.11,184.99,3.32887142]
[1760862790194,0.5388802,185.1,185.02,3.32887142]
[1760862790397,3.86775162,185.13,185.05,3.32887142]
[1760862790628,4.03887142,185.14,185.06,3.32887142]
[1760862790830,0.5388802,185.13,185.06,8.73245727]
[1760862791027,3.32887142,185.15,185.08,3.32887142]
[1760862791207,3.32887142,185.13,185.06,22.24158944]
[1760862791606,0.5388802,185.12,185.06,22.90158944]
[1760862791921,3.86775162,185.12,185.06,6.06358585]
[1760862792224,3.32887142,185.08,185.04,5.40396618]
[1760862792394,3.32887142,185.05,184.99,0.66]
[1760862792595,3.32887142,185.02,184.99,5.40569697]
[1760862792801,3.32887142,185.04,184.97,8.73488692]
[1760862793095,3.32887142,185.07,185.0,3.32887142]
[1760862793406,3.86775162,185.09,185.03,3.32887142]